Cogmind - Beta 15 @@@ ROGUE MODE // 2025.08.06 @ 20:15:42 Player: SnailSD Result: Destroyed by A1-BRZ(R) with Subdweller Machine Gun Performance ------------- Evolutions (0) 0 Regions Visited (3) 600 Robots Destroyed (18) 90 Value Destroyed (399) 399 Prototype IDs (0) 0 Alien Tech Used (0) 0 Bonus (0) 0 TOTAL SCORE: 1089 Bonus ------- None Cogmind --------- Core Integrity 0/250 Matter 280/300 Energy 103/125 System Corruption 0% Temperature Cool (0) Movement Treading (160) Location -10/Subcaves Parts ------- > --- POWER (1) -------- Light Ion Engine > --- PROPULSION (2) --- Light Treads Light Treads > --- UTILITY (2) ------ Large Storage Unit > --- WEAPON (2) ------- (None) > --- INVENTORY (15) --- Light Treads Light Treads Large Storage Unit Large Storage Unit Weapon Shielding Hacking Suite Grenade Launcher Peak State ------------ > --- POWER ------------ Ion Engine > --- PROPULSION ------- Light Treads Light Treads > --- UTILITY ---------- Large Storage Unit Improved Terrain Scanner > --- WEAPON ----------- Riot Gun Medium Laser > --- INVENTORY -------- Light Ion Engine Light Ion Engine Light Treads Light Treads Light Treads Light Treads Light Treads Large Storage Unit Large Storage Unit Weapon Shielding Hacking Suite EM Pulse Gun Medium Laser Light Assault Rifle Grenade Launcher [Rating: 12] Favorites ----------- Power Light Ion Engine Engine Light Ion Engine Propulsion Light Treads Treads Light Treads Utility Large Storage Unit Device Improved Terrain Scanner Storage Large Storage Unit Weapon Medium Laser Energy Gun Medium Laser Ballistic Gun Light Assault Rifle Build | -11 -10 -10 -10 ------- Run | Yrd Mat Min Sub Slots Evolved . | . . . . Power . | . . . . Propulsion . | . . . . Utility . | . . . . Weapon . | . . . . Parts Attached 19 | 7 4 . 8 Power 4 | 1 2 . 1 Engine 4 | 1 2 . 1 Core . | . . . . Reactor . | . . . . Propulsion 5 | 2 . . 3 Treads 5 | 2 . . 3 Leg . | . . . . Wheel . | . . . . Hover . | . . . . Flight . | . . . . Utility 4 | 2 2 . . Device 1 | 1 . . . Storage 3 | 1 2 . . Processor . | . . . . Hackware . | . . . . Protection . | . . . . Artifact . | . . . . Weapon 6 | 2 . . 4 Energy Gun 5 | 2 . . 3 Energy Cannon . | . . . . Ballistic Gun 1 | . . . 1 Ballistic Cannon . | . . . . Launcher . | . . . . Special Weapon . | . . . . Impact Weapon . | . . . . Slashing Weapon . | . . . . Piercing Weapon . | . . . . Special Melee Weapon . | . . . . Unidentified Prototypes . | . . . . Parts Lost 12 | . 1 . 11 Power 3 | . 1 . 2 Propulsion 3 | . . . 3 Utility 1 | . . . 1 Weapon 5 | . . . 5 Highest Loss Streak 5 | . 1 . 5 To Critical Strikes . | . . . . Average Backups 12 | 4 13 15 12 Power 1 | 1 1 2 1 Propulsion 4 | 3 4 5 4 Utility 2 | . 2 4 4 Weapon 3 | . 4 4 2 Tool/Special . | . . . . Unused Backups 15 | . 8 . 7 Power . | . . . . Propulsion 7 | . 5 . 2 Utility 5 | . 1 . 4 Weapon 3 | . 2 . 1 Tool/Special . | . . . . Average Slot Usage (%) 93 | . 96 100 88 Engine 12 | . 11 14 13 Treads 26 | . 28 28 24 Device 11 | . 14 14 8 Storage 13 | . 13 14 14 Energy Gun 27 | . 28 28 26 Peak Build Rating 12 | 9 10 10 12 Average Rating 9 | 5 9 10 9 On Entrance 7 | . 9 10 10 Naked Turns . | . . . . Heaviest Build 31 | 13 30 30 31 Greatest Support 40 | 40 40 40 40 Greatest Overweight (x) 1 | . . . 1 Average Overweight (x) . | . . . . Largest Inventory Capacity 25 | 8 25 15 15 Average Capacity 14 | 7 14 15 15 Most Carried 15 | 8 15 15 15 Average Carried 12 | 4 13 15 12 Final Capacity 15 | 8 15 15 15 Final Carried 15 | 8 15 15 7 Class Distribution -------------------- 100% | Mutant Dominant Class ---------------- Mutant | -10/Materials Mutant | -10/Mines Mutant | -10/Subcaves Resources | -11 -10 -10 -10 ----------- Run | Yrd Mat Min Sub Matter Collected 365 | 270 50 . 45 Remotely . | . . . . Salvage Created 709 | 107 424 . 178 Parts 35 | 6 22 . 7 Haulers Intercepted 2 | . 2 . . Recyclers Shooed . | . . . . Parts Field Recycled . | . . . . Retrieved Matter . | . . . . Parts Self-Destructed . | . . . . Prevented . | . . . . Kills | -11 -10 -10 -10 ------- Run | Yrd Mat Min Sub Combat Hostiles Destroyed 13 | . 10 . 3 Guns 13 | . 10 . 3 Classes Destroyed 7 | 2 4 . 1 Tunneler 1 | 1 . . . Hauler 2 | . 2 . . Recycler 1 | 1 . . . Operator 1 | . 1 . . Swarmer 5 | . 5 . . Grunt 5 | . 5 . . Subdweller 3 | . . . 3 Best Kill Streak 5 | 1 5 . 1 Combat Bots Only 5 | . 5 . 1 Max Kills in Single Turn 1 | 1 1 . 1 Gunslinging . | . . . . Exploded . | . . . . Melee . | . . . . Uniques/NPCs Destroyed . | . . . . Combat | -11 -10 -10 -10 -------- Run | Yrd Mat Min Sub Hostile Shots Fired 115 | . 63 . 52 Missed 32 | . 18 . 14 Hits 83 | . 45 . 38 Projectile 83 | . 45 . 38 Critical Strikes 2 | . 1 . 1 Damage Taken 1399 | . 504 . 895 Core 253 | . 101 . 152 Absorbed by Shields . | . . . . Core Remaining (%) 100 | 100 . . . Volleys Fired 71 | 7 41 . 23 Largest 2 | 2 2 . 2 Hottest 100 | 100 100 . 90 Shots Fired 132 | 14 81 . 37 Gun 132 | 14 81 . 37 Cannon . | . . . . Launcher . | . . . . Special . | . . . . Kinetic 10 | . . . 10 Thermal 107 | 14 81 . 12 Explosive . | . . . . Electromagnetic 15 | . . . 15 Robot Hit Streak 30 | 5 12 . 30 Robot Miss Streak 5 | 1 5 . 1 Penetration Max . | . . . . Secondary Targets 1 | . 1 . . Max Gunslinging Chain 1 | . 1 . . Shots Hit Robots 87 | 9 46 . 32 Core Hits 34 | 3 23 . 8 Critical Kills . | . . . . Critical Parts Destroyed . | . . . . Critical Strikes 7 | 1 5 . 1 Burn 6 | 1 5 . . Corrupt 1 | . . . 1 Melee Attacks . | . . . . Impact . | . . . . Slashing . | . . . . Piercing . | . . . . Sneak Attacks . | . . . . Combat Hostiles . | . . . . Follow-up Attacks . | . . . . Damage Inflicted 1037 | 111 592 . 334 Guns 1036 | 111 591 . 334 Cannons . | . . . . Explosions . | . . . . Melee . | . . . . Ramming 1 | . 1 . . Kinetic 73 | . . . 73 Thermal 816 | 111 591 . 114 Explosive . | . . . . Electromagnetic 147 | . . . 147 Impact . | . . . . Slashing . | . . . . Piercing . | . . . . Highest Corruption . | . . . . Average Corruption . | . . . . Corruption Purged . | . . . . Corruption Blocked . | . . . . Overload Shots . | . . . . Overflow Damage . | . . . . Projectiles . | . . . . Explosions . | . . . . Melee . | . . . . Knockbacks . | . . . . Impact . | . . . . Kinetic . | . . . . Secondary . | . . . . Self-Inflicted Damage . | . . . . Shots . | . . . . Rammed 1 | . 1 . . Targets Rammed 1 | . 1 . . Kicked . | . . . . Crushed . | . . . . Highest Temperature 349 | 117 349 . . Average Temperature 108 | 48 119 . . Received Heat Transfer 303 | . 189 . 114 Effects 7 | . 7 . . Shutdowns 1 | . 1 . . Energy Bleed 1 | . 1 . . Interference 4 | . 4 . . Damage (minor) 1 | . 1 . . Siege Activations . | . . . . Martial Activations . | . . . . Shielding Activations . | . . . . Robots Disrupted . | . . . . Combat Hostiles . | . . . . Robots Corrupted . | . . . . Combat Hostiles . | . . . . Parts Fried . | . . . . Impact Corruptions . | . . . . Robots Melted . | . . . . Combat Hostiles . | . . . . Parts Melted 8 | 2 5 . 1 Heat Transferred 2849 | 407 2109 . 333 Parts Sabotaged . | . . . . Parts Stolen . | . . . . Parts Stripped . | . . . . Power Chain Reactions . | . . . . Alert | -11 -10 -10 -10 ------- Run | Yrd Mat Min Sub Maximum Alert Level . | . . . . Low Security (%) 100 | 100 100 100 . Level 1 . | . . . . Level 2 . | . . . . Level 3 . | . . . . Level 4 . | . . . . Level 5 . | . . . . High Security . | . . . . Max Security . | . . . . Peak Influence 178 | 5 178 59 . Initial 59 | . . 59 . Average 41 | . 47 46 . Influence Increases 320 | 10 310 . . Destroy 0b10 Robot/C 200 | . 200 . . Destroy 0b10 Robot/NC 25 | 10 15 . . Destroy Leader 44 | . 44 . . Successful Hack 6 | . 6 . . Lose Combat Pursuer 45 | . 45 . . Influence Decreases 320 | 10 157 124 29 Entered New Map 110 | . . 94 16 Time Decay 210 | 10 157 30 13 Squads Dispatched 1 | . 1 . . Investigation . | . . . . Extermination . | . . . . Reinforcement 1 | . 1 . . Assault . | . . . . Garrison . | . . . . Intercept . | . . . . Searches Triggered . | . . . . Construction Impeded . | . . . . Haulers Reinforced . | . . . . Active Scanning Responses . | . . . . Cargo Convoy Interrupts . | . . . . Stealth | -11 -10 -10 -10 --------- Run | Yrd Mat Min Sub Distress Signals 1 | . 1 . . Communications Jammed . | . . . . Distress Signals . | . . . . Times Spotted 28 | . 20 . 8 Peak Tracking Total 5 | . 5 . 3 Tactical Retreats 5 | . 2 . 3 Traps | -11 -10 -10 -10 ------- Run | Yrd Mat Min Sub Traps Triggered 2 | . 1 . 1 Indirectly . | . . . . Trap Hack Attempts . | . . . . Triggered . | . . . . Disarmed . | . . . . Reprogrammed . | . . . . Reused . | . . . . Traps Extracted . | . . . . Installed . | . . . . Triggered . | . . . . Machines | -11 -10 -10 -10 ---------- Run | Yrd Mat Min Sub Machines Disabled . | . . . . Max in Single Turn . | . . . . Machines Repaired . | . . . . Machines Dismantled . | . . . . Machines Sabotaged . | . . . . Overloaded Fab Kills . | . . . . Hacking | -11 -10 -10 -10 --------- Run | Yrd Mat Min Sub Machines Accessed 1 | . 1 . . Terminals 1 | . 1 . . Fabricators . | . . . . Repair Stations . | . . . . Recycling Units . | . . . . Scanalyzers . | . . . . Garrison Access . | . . . . Total Hacks 2 | . 2 . . Successful 2 | . 2 . . Failed . | . . . . Catastrophic . | . . . . Database Lockouts . | . . . . Manual 1 | . 1 . . Terminals 2 | . 2 . . Fabricators . | . . . . Repair Stations . | . . . . Recycling Units . | . . . . Scanalyzers . | . . . . Garrison Access . | . . . . Terminal Hacks 1 | . 1 . . Robot Analysis 1 | . 1 . . Fabricator Hacks . | . . . . Repair Station Hacks . | . . . . Recycling Unit Hacks . | . . . . Scanalyzer . | . . . . Garrison Access Hacks . | . . . . Unauthorized Hacks 1 | . 1 . . Terminals 1 | . 1 . . Operators 1 | . 1 . . Fabricators . | . . . . Repair Stations . | . . . . Recycling Units . | . . . . Scanalyzers . | . . . . Garrison Access . | . . . . Data Cores Recovered . | . . . . Used . | . . . . Hacking Detections 1 | . 1 . . Full Trace Events . | . . . . Feedback Events . | . . . . Feedback Blocked . | . . . . Robot Schematics Acquired . | . . . . Robots Built . | . . . . Authchips . | . . . . Time . | . . . . Total Robot Build Rating . | . . . . Part Schematics Acquired . | . . . . Parts Built . | . . . . Authchips . | . . . . Time . | . . . . Total Part Build Rating . | . . . . Parts Repaired . | . . . . Time . | . . . . Parts Recycled . | . . . . Recycled Matter . | . . . . Retrieved Matter . | . . . . Retrieved Components . | . . . . Parts Scanalyzed . | . . . . Part Schematics Acquired . | . . . . Parts Damaged . | . . . . Bothacking | -11 -10 -10 -10 ------------ Run | Yrd Mat Min Sub Used RIF Installer . | . . . . Robots Hacked . | . . . . Non-combat . | . . . . Combat . | . . . . Robot Hacks Applied . | . . . . Relay Couplers Released . | . . . . Fabnet Peak Effective % . | . . . . Robots Rewired . | . . . . Allies Hacked . | . . . . Hacks Repelled . | . . . . Allies | -11 -10 -10 -10 -------- Run | Yrd Mat Min Sub Total Allies 1 | . . 1 . Largest Group 1 | . . 1 1 Highest-Rated Group 31 | . . 31 31 Highest-Rated Ally 31 | . . 31 31 Total Orders . | . . . . Ally Attacks . | . . . . Total Damage . | . . . . Kills . | . . . . Allies Corrupted . | . . . . Allies Melted . | . . . . Intel | -11 -10 -10 -10 ------- Run | Yrd Mat Min Sub Active Infowar (turns) 1000 | 24 513 68 395 Terrain 1000 | 24 513 68 395 Robot Analysis Total 1 | . 1 . . Derelict Logs Recovered 2 | . . . 2 Drone Launches . | . . . . Drone Recoveries . | . . . . Exploration | -11 -10 -10 -10 ------------- Run | Yrd Mat Min Sub Turns Passed 1632 | 120 778 68 666 Spaces Moved 824 | 53 379 43 349 Core 3 | 3 . . . Treads 821 | 50 379 43 349 Legs . | . . . . Wheels . | . . . . Hover . | . . . . Flight . | . . . . Fastest Speed 50 | 50 160 160 160 Average Speed 163 | 153 160 160 170 Slowest Speed 240 | 160 160 160 240 Overloaded Moves . | . . . . Propulsion Burnouts . | . . . . Robots Hopped . | . . . . Potential Cave-ins . | . . . . Cave-ins Triggered . | . . . . Exploration Rate (%) 31 | 6 70 9 41 Regions Visited 3 Branch Regions 2 Pre-discovered Areas 1 | . . . 1 Known Exits Taken . | . . . . Unknown Exits Taken 3 | 1 1 1 . Scrap Searched . | . . . . Spaces Dug . | . . . . Terrain Destroyed . | . . . . Melee . | . . . . Projectile . | . . . . AOE . | . . . . Terrain Rammed . | . . . . Walls Destroyed . | . . . . Machines Disabled . | . . . . Actions | -11 -10 -10 -10 --------- Run | Yrd Mat Min Sub Total 976 | 74 474 42 386 Wait 23 | . 19 . 4 Move 821 | 52 378 42 349 Hop . | . . . . Pick Up 27 | 8 19 . . Fast Attach 9 | 7 1 . 1 Attach 9 | . 1 . 8 Detach . | . . . . Swap 3 | . 3 . . Drop 12 | . 11 . 1 Fire 71 | 7 41 . 23 Melee . | . . . . Ram . | . . . . Kick . | . . . . Crush 1 | . 1 . . Escape Stasis . | . . . . Rewire . | . . . . Trap . | . . . . Miscellaneous . | . . . . Route ------- -11/Scrapyard -10/Materials (discovered 4 exits: [*Mat x2] / [*Min] / [*Sub]) -10/Mines -10/Subcaves History --------- Turn | Location | Event 46 | -11/Scrapyard | Discovered new exit (range 15) 121 | -11/Scrapyard | Entered Materials 301 | -10/Materials | Build established: Mutant 315 | -10/Materials | Discovered new exit (range 7) 570 | -10/Materials | Discovered new exit (range 6) 681 | -10/Materials | Discovered new exit (range 15) 825 | -10/Materials | Discovered new exit (range 10) 899 | -10/Materials | Entered Mines 902 | -10/Mines | Received a Mining Laser from a helpful Derelict 954 | -10/Mines | Discovered new exit (range 7) 967 | -10/Mines | Entered Subcaves 967 | -10/Subcaves | Accompanied by 1 ally 968 | -10/Subcaves | Shifting Twisted Machinery released Riot Gun 969 | -10/Subcaves | Learned location of Zion (-6) 1018 | -10/Subcaves | Shifting Twisted Machinery released Flamer 1315 | -10/Subcaves | Lost 5 parts (1p1n3w) 1414 | -10/Subcaves | Learned 4 Materials zone layouts 1462 | -10/Subcaves | Core integrity fell below 50% 1605 | -10/Subcaves | Core integrity fell below 20% 1633 | -10/Subcaves | Destroyed by A1-BRZ(R) with Subdweller Machine Gun Last Messages --------------- to Scrap Shield. 01371_ QM-EIL(R) destroyed. 01390_ Acquired 10 matter. 01414_ Acquired derelict log, extracted data. Data stored: Materials zone layouts (x4). 01463_ Lgt. Treads destroyed. 01493_ Triggered Shrapnel Trap. 01493_ An expanding cloud of shrapnel blasts out in all directions. 01540_ TV-RNY(R) misfires. 01574_ Sub. Laser melted. 01574_ R1-V95(R) destroyed. 01589_ EM Pulse Gun destroyed. 01592_ Lgt. Ion Engine destroyed. 01598_ Lgt. Treads destroyed. 01602_ QC-T1K(u) tweaks Twisted Machinery. 01603_ TV-RNY(R) affixes Scrap Shield Fragment to Scrap Shield. 01605_ QC-T1K(u) tweaks Twisted Machinery. 01622_ Med. Laser destroyed. Map ----- +----------------------------------------------------+ | ### #???## ##?# #??????? | | ?## #????# ##?## #??????? | | ### ?#### ##????#### #??# #??????? | | ##?? ???# ##????????## ### !* #??????? | | ????# ????# ##??????????# %& #??????? | | ?????# ???# ##???????????## & ##?????? | | ??????#???####?????????????## #?????? | | ????????????????????????##??## ##?????? | | ????????????????????????# ???# #??????? | | ????????????????????????# ???# #??????? | | ???????????????????????## ???# ##### #??????? | | ??????????????????????## #??# ##??? #??????? | | ?????????????????????## ### "#??? #??????? | | ???????????????# ## ""#???## ##??????? | | ???????????????# ###????? #???????? | | ????????????????# ## ###????????"#???????? | | ????????????????###?????# ##???????????????????? | | ????????????????????????# #????????????????????? | | ????????????????????????## #####????????????????? | | ?????????????????????????## R ##???????????????? | | ??????????????????????????#R #???????????????? | | ?????????????????????????## ## #??????????????? | | ?????????????????????????# %##? "#??????????????? | | ???????????????????????### " #??##??????????????? | | ???????????????????????# "##??????????????????? | | ???????????????????????# @% "#??????????????????? | | ???????????????????????# ##??????????????????? | | ??????????????????????# ##???????????????????? | | ??????????????????????# ##????????????????????? | | ??????????????????????# %#?????????????????????? | | ??????????????????????# #?????????????????????? | | ?????????????????????? #?????????????????????? | | ????????????????????? #?????????????????????? | | ?????????????????????# ?????????????????????? | | ?????????????????????### ?????????????????????? | | ???????????????????????## ?????????????????????? | | ????????????????????????# ?????????????????????? | | ????????????????????????? ?????????????????????? | | ????????????????????????? # ????????????????????? | | ????????????????????????? #?#????????????????????? | | ?????????????????????????#???????????????????????? | | ?????????????????????????????????????????????????? | | ?????????????????????????????????????????????????? | | ?????????????????????????????????????????????????? | | ?????????????????????????????????????????????????? | | ?????????????????????????????????????????????????? | | ?????????????????????????????????????????????????? | | ?????????????????????????????????????????????????? | | ?????????????????????????????????????????????????? | | ?????????????????????????????????????????????????? | +----------------------------------------------------+ Best States ------------- Heat Dissipation 25 Energy Generation 10 Energy Capacity 250 Matter Stores 300 Matter Capacity 300 Sight Range 16 Terrain Scan Range 16 Terrain Scan Density 10 Evasion (%) 40 Recoil Reduction 2 Item Schematics ----------------- None Robot Schematics ------------------ None Fabricated ------------ Nothing Repaired ---------- Nothing Alien Tech Used ----------------- None Achievements -------------- None Challenges ------------ None Game ------ Seed HellfireColdSpecial Manual? 0 Play Time 00:13:34 Cumulative 24.4 hours Start 2025.08.06 @ 01:00:33 End 2025.08.06 @ 20:15:42 Sessions 2 Manual Loads 0 Difficulty Rogue Special Mode None Game No. 38 Rogue 38 Adventurer 0 Explorer 0 Win Type - Total 0 Types 0/0/0/0/0/0/0/0/0/0 Lore% 31 Gallery% 28 Achievement% 27 Wizard Run 0 Options --------- Layout 1 ASCII 0 Keyboard 0 Movement Numpad Keybinds 0 Fullscreen 1 Font 24/Smallcaps Map View 50x35 Zoom Use 0% Tactical HUD 1 Map Filters NONE Filters NONE Steam 1 RUN: 42cac82f-d6d8-4544-885d-becdc6792d99